fUST/lending_fUST_20250107
["ID","MTS","AMOUNT","RATE_DAILY","PERIOD"]
[347930178,1736218242874,-257.911131,0.000195,2]
[347930179,1736218242884,-346.640044,0.000195,2]
[347930181,1736218242894,-346.640044,0.000195,2]
[347930184,1736218242903,-1128.534128,0.000195,2]
[347930186,1736218242913,-1128.534128,0.000195,2]
[347930188,1736218242922,-545.058135,0.000195,2]
[347930189,1736218242934,-545.058135,0.000195,2]
[347930191,1736218242942,-352.9591083,0.000195,2]
[347930193,1736218242951,-352.9591083,0.000195,2]
[347930196,1736218242961,-151.0,0.0001954,2]
[347930198,1736218242971,-157.183464,0.0001954,2]
[347930199,1736218242980,-151.0,0.0001954,2]
[347930201,1736218242989,-150.083,0.00019581,2]
[347930203,1736218242998,-151.735,0.00019581,2]
[347930205,1736218243007,-151.0,0.00019581,2]
[347930207,1736218243017,-151.0,0.00019581,2]
[347930209,1736218243026,-1178.847734,0.00019581,2]
[347930211,1736218243035,-1178.847734,0.00019581,2]
[347930213,1736218243045,-605.378646,0.00019581,2]
[347930215,1736218243055,-605.378646,0.00019581,2]
[347930217,1736218243065,-151.0,0.00019581,2]
[347930219,1736218243075,-151.0,0.00019581,2]
[347930221,1736218243084,-151.0,0.00019581,2]
[347930223,1736218243094,-313.028497,0.00019581,2]
[347930225,1736218243103,-313.028497,0.00019581,2]
[347930227,1736218243112,-151.0,0.00019581,2]
[347930229,1736218243122,-251.412382,0.00019581,2]
[347930232,1736218243131,-251.412382,0.00019581,2]
[347930233,1736218243140,-1207.474637,0.00019581,2]
[347930235,1736218243149,-1207.474637,0.00019581,2]
[347930238,1736218243159,-390.964998,0.00019581,2]
[347930240,1736218243168,-390.964998,0.00019581,2]
[347930241,1736218243177,-990.955405,0.00019583,2]
[347930244,1736218243188,-990.955405,0.00019583,2]
[347930245,1736218243198,-900.674693,0.00019583,2]
[347930248,1736218243207,-900.674693,0.00019583,2]
[347930250,1736218243217,-151.0,0.00019587,2]
[347930252,1736218243227,-151.0,0.00019587,2]
[347930254,1736218243238,-153.054741,0.00019587,2]
[347930257,1736218243247,-153.054741,0.00019587,2]
[347930260,1736218243256,-412.958138,0.00019587,2]
[347930263,1736218243265,-412.958138,0.00019587,2]
[347930266,1736218243277,-271.831048,0.00019721,2]
[347930269,1736218243286,-151.0,0.00019725,2]
[347930272,1736218243295,-151.0,0.00019725,2]
[347930274,1736218243304,-1496.67572,0.00019725,2]
[347930275,1736218243314,-1496.67572,0.00019725,2]
[347930278,1736218243323,-150.11,0.00019726,2]
[347930280,1736218243335,-500.0,0.00019726,2]
[347930282,1736218243347,-500.0,0.00019726,2]
[347930284,1736218243358,-173.32847721,0.00019726,2]
[347930286,1736218243368,-150.11,0.00019726,2]
[347930288,1736218243379,-150.11,0.00019726,2]
[347930290,1736218243390,-902.66675347,0.00019726,2]
[347930292,1736218243400,-603.6509357,0.00019726,2]
[347930294,1736218243409,-701.29367196,0.00019726,2]
[347930296,1736218243421,-164.1304668,0.00019726,2]
[347930298,1736218243432,-500.0,0.00019726,2]
[347930300,1736218243442,-500.0,0.00019726,2]
[347930302,1736218243451,-150.11,0.00019726,2]
[347930304,1736218243462,-533.49349806,0.00019726,2]
[347930306,1736218243471,-500.0,0.00019726,2]
[347930308,1736218243481,-657.47819328,0.00019726,2]
[347930310,1736218243491,-150.11,0.00019726,2]
[347930312,1736218243500,-150.82722519,0.00019726,2]
[347930314,1736218243510,-151.0,0.00019726,2]
[347930316,1736218243519,-152.749452,0.00019726,2]
[347930318,1736218243528,-151.0,0.00019726,2]
[347930320,1736218243538,-151.0,0.00019726,2]
[347930322,1736218243548,-190.965933,0.00019726,2]
[347930324,1736218243557,-190.965933,0.00019726,2]
[347930326,1736218243567,-177.60691,0.00019726,2]
[347930328,1736218243576,-177.60691,0.00019726,2]
[347930330,1736218243585,-151.0,0.00019726,2]
[347930332,1736218243595,-241.995689,0.00019726,2]
[347930334,1736218243604,-241.995689,0.00019726,2]
[347930336,1736218243613,-208.037966,0.00019726,2]
[347930338,1736218243623,-208.037966,0.00019726,2]
[347930340,1736218243632,-151.0,0.00019726,2]
[347930342,1736218243641,-151.0,0.00019726,2]
[347930344,1736218243651,-151.0,0.00019726,2]
[347930346,1736218243661,-151.0,0.00019726,2]
[347930348,1736218243670,-151.0,0.00019726,2]
[347930350,1736218243681,-151.0,0.00019726,2]
[347930352,1736218243691,-354.492904,0.00019726,2]
[347930354,1736218243700,-354.492904,0.00019726,2]
[347930356,1736218243709,-354.492904,0.00019726,2]
[347930358,1736218243719,-354.492904,0.00019726,2]
[347930360,1736218243729,-596.430962,0.00019726,2]
[347930362,1736218243738,-596.430962,0.00019726,2]
[347930364,1736218243748,-151.0,0.00019726,2]
[347930366,1736218243758,-151.0,0.00019726,2]
[347930368,1736218243768,-596.430962,0.00019726,2]
[347930370,1736218243777,-596.430962,0.00019726,2]
[347930372,1736218243786,-153.993812,0.00019726,2]
[347930374,1736218243795,-153.993812,0.00019726,2]
[347930376,1736218243804,-153.993812,0.00019726,2]
[347930378,1736218243814,-153.993812,0.00019726,2]
[347930380,1736218243823,-169.833979,0.00019726,2]
[347930382,1736218243833,-169.833979,0.00019726,2]
[347930384,1736218243843,-169.833979,0.00019726,2]
[347930386,1736218243852,-169.833979,0.00019726,2]
[347930388,1736218243861,-229.308313,0.00019726,2]
[347930390,1736218243871,-229.308313,0.00019726,2]
[347930392,1736218243880,-229.308313,0.00019726,2]
[347930394,1736218243890,-1178.847734,0.00019726,2]
[347930396,1736218243900,-1178.847734,0.00019726,2]
[347930399,1736218243909,-1178.847734,0.00019726,2]
[347930401,1736218243918,-1178.847734,0.00019726,2]
[347930404,1736218243930,-165.633418,0.00019726,2]
[347930406,1736218243939,-165.633418,0.00019726,2]
[347930408,1736218243950,-165.633418,0.00019726,2]
[347930410,1736218243960,-165.633418,0.00019726,2]
[347930412,1736218243970,-257.911131,0.00019726,2]
[347930414,1736218243979,-257.911131,0.00019726,2]
[347930416,1736218243989,-257.911131,0.00019726,2]
[347930419,1736218243998,-257.911131,0.00019726,2]
[347930421,1736218244009,-346.640044,0.00019726,2]
[347930423,1736218244018,-346.640044,0.00019726,2]
[347930425,1736218244028,-346.640044,0.00019726,2]
[347930427,1736218244037,-346.640044,0.00019726,2]
[347930429,1736218244047,-151.0,0.00019726,2]
[347930431,1736218244057,-151.0,0.00019726,2]
[347930433,1736218244066,-151.604484,0.00019726,2]
[347930435,1736218244075,-605.378646,0.00019726,2]
[347930437,1736218244085,-605.378646,0.00019726,2]
[347930439,1736218244094,-605.378646,0.00019726,2]
[347930441,1736218244104,-605.378646,0.00019726,2]
[347930443,1736218244113,-151.0,0.00019726,2]
[347930445,1736218244122,-151.0,0.00019726,2]
[347930447,1736218244131,-155.069416,0.00019726,2]
[347930449,1736218244141,-1128.534128,0.00019726,2]
[347930451,1736218244150,-1128.534128,0.00019726,2]
[347930453,1736218244160,-1128.534128,0.00019726,2]
[347930455,1736218244169,-1128.534128,0.00019726,2]
[347930457,1736218244179,-151.0,0.00019726,2]
[347930459,1736218244191,-151.0,0.00019726,2]
[347930461,1736218244200,-178.094633,0.00019726,2]
[347930463,1736218244209,-178.094633,0.00019726,2]
[347930465,1736218244219,-178.094633,0.00019726,2]
[347930467,1736218244228,-178.094633,0.00019726,2]
[347930469,1736218244237,-178.094633,0.00019726,2]
[347930471,1736218244247,-178.094633,0.00019726,2]
[347930473,1736218244256,-500.0,0.00019726,3]
[347930475,1736218244265,-500.0,0.00019726,3]
[347930477,1736218244275,-313.028497,0.00019726,2]
[347930479,1736218244284,-313.028497,0.00019726,2]
[347930481,1736218244294,-313.028497,0.00019726,2]
[347930483,1736218244303,-313.028497,0.00019726,2]
[347930485,1736218244312,-545.058135,0.00019726,2]
[347930488,1736218244322,-545.058135,0.00019726,2]
[347930490,1736218244333,-545.058135,0.00019726,2]
[347930492,1736218244347,-545.058135,0.00019726,2]
[347930494,1736218244357,-2093.44932,0.00019726,2]
[347930496,1736218244366,-2093.44932,0.00019726,2]
[347930498,1736218244376,-2093.44932,0.00019726,2]
[347930500,1736218244387,-2093.44932,0.00019726,2]
[347930502,1736218244397,-151.0,0.00019726,2]
[347930504,1736218244406,-151.0,0.00019726,2]
[347930506,1736218244418,-251.412382,0.00019726,2]
[347930508,1736218244427,-251.412382,0.00019726,2]
[347930510,1736218244436,-251.412382,0.00019726,2]
[347930512,1736218244446,-251.412382,0.00019726,2]
[347930515,1736218244467,-500.0,0.00019726,5]
[347930517,1736218244478,-1207.474637,0.00019726,2]
[347930519,1736218244487,-1207.474637,0.00019726,2]
[347930540,1736218244664,-1207.474637,0.00019726,2]
[347930543,1736218244680,-1207.474637,0.00019726,2]
[347930545,1736218244690,-500.0,0.00019726,3]
[347930547,1736218244699,-151.0,0.00019726,2]
[347930549,1736218244709,-263.440092,0.00019726,2]
[347930551,1736218244719,-500.0,0.00019726,3]
[347930553,1736218244728,-500.0,0.00019726,3]
[347930555,1736218244737,-546.328271,0.00019726,2]
[347930557,1736218244747,-546.328271,0.00019726,2]
[347930559,1736218244756,-500.0,0.00019726,3]
[347930561,1736218244766,-546.328271,0.00019726,2]
[347930563,1736218244775,-546.328271,0.00019726,2]
[347930565,1736218244785,-994.87,0.00019726,3]
[347930566,1736218244794,-151.0,0.00019726,2]
[347930567,1736218244804,-151.0,0.00019726,2]
[347930568,1736218244813,-603.45,0.00019726,3]
[347930569,1736218244823,-500.0,0.00019726,3]
[347930570,1736218244832,-500.0,0.00019726,3]
[347930571,1736218244841,-507.04421163,0.00019726,3]
[347930572,1736218244850,-500.0,0.00019726,3]
[347930573,1736218244860,-636.16,0.00019726,3]
[347930574,1736218244869,-500.0,0.00019726,3]
[347930576,1736218244879,-980.5,0.00019726,3]
[347930578,1736218244889,-500.0,0.00019726,3]
[347930580,1736218244898,-874.84,0.00019726,3]
[347930582,1736218244908,-526.25,0.00019726,3]
[347930583,1736218244917,-2918.47,0.00019726,3]
[347930585,1736218244926,-853.0,0.00019726,3]
[347930587,1736218244937,-500.0,0.00019726,3]
[347930588,1736218244946,-500.0,0.00019726,3]
[347930590,1736218244955,-627.59,0.00019726,3]
[347930592,1736218244965,-153.054741,0.00019726,2]
[347930594,1736218244974,-153.054741,0.00019726,2]
[347930596,1736218244983,-500.0,0.00019726,3]
[347930597,1736218244992,-500.0,0.00019726,3]
[347930598,1736218245002,-537.38,0.00019726,3]
[347930599,1736218245011,-671.38,0.00019726,3]
[347930600,1736218245020,-500.0,0.00019726,3]
[347930601,1736218245029,-990.955405,0.00019726,2]
[347930602,1736218245039,-990.955405,0.00019726,2]
[347930603,1736218245048,-990.955405,0.00019726,2]
[347930604,1736218245058,-990.955405,0.00019726,2]
[347930605,1736218245067,-2092.96,0.00019726,3]
[347930606,1736218245077,-500.0,0.00019726,3]
[347930607,1736218245086,-4545.72,0.00019726,3]
[347930608,1736218245095,-841.74,0.00019726,3]
[347930609,1736218245106,-500.0,0.00019726,3]
[347930610,1736218245115,-488.83850698,0.00019726,3]
[347930611,1736218245125,-500.0,0.00019726,3]
[347930612,1736218245135,-412.958138,0.00019726,2]
[347930613,1736218245144,-412.958138,0.00019726,2]
[347930614,1736218245153,-900.674693,0.00019726,2]
[347930615,1736218245163,-500.0,0.00019726,3]
[347930616,1736218245172,-900.674693,0.00019726,2]
[347930617,1736218245182,-900.674693,0.00019726,2]
[347930618,1736218245191,-900.674693,0.00019726,2]
[347930619,1736218245201,-536.63378604,0.00019726,3]
[347930620,1736218245211,-390.964998,0.00019726,2]
[347930621,1736218245220,-390.964998,0.00019726,2]
[347930622,1736218245229,-500.0,0.00019726,3]
[347930623,1736218245239,-151.0,0.00019726,2]
[347930624,1736218245248,-151.0,0.00019726,2]
[347930625,1736218245258,-500.0,0.00019726,3]
[347930626,1736218245267,-500.0,0.00019726,3]
[347930627,1736218245276,-151.0,0.00019726,2]
[347930628,1736218245286,-151.0,0.00019726,2]
[347930629,1736218245295,-548.58623486,0.00019726,3]
[347930630,1736218245305,-151.0,0.00019726,2]
[347930631,1736218245314,-151.0,0.00019726,2]
[347930632,1736218245323,-500.0,0.00019726,3]
[347930633,1736218245333,-514.18528911,0.00019726,3]
[347930634,1736218245346,-633.31,0.00019726,2]
[347930635,1736218245356,-728.2,0.00019726,3]
[347930636,1736218245366,-500.0,0.00019726,3]
[347930637,1736218245376,-828.09,0.00019726,3]
[347930638,1736218245387,-151.0,0.00019726,2]
[347930639,1736218245397,-151.0,0.00019726,2]
[347930640,1736218245407,-2916.11,0.00019726,3]
[347930641,1736218245417,-521.07277596,0.00019726,3]
[347930642,1736218245427,-500.0,0.00019726,3]
[347930643,1736218245437,-553.58,0.00019726,3]
[347930644,1736218245447,-500.0,0.00019726,3]
[347930645,1736218245456,-500.0,0.00019726,3]
[347930646,1736218245466,-787.87,0.00019726,3]
[347930647,1736218245476,-1735.53,0.00019726,3]
[347930648,1736218245486,-852.64,0.00019726,3]
[347930649,1736218245496,-500.0,0.00019726,3]
[347930650,1736218245505,-1036.47,0.00019726,3]
[347930651,1736218245515,-500.0,0.00019726,3]
[347930652,1736218245525,-500.0,0.00019726,3]
[347930653,1736218245534,-826.31,0.00019726,3]
[347930654,1736218245544,-500.0,0.00019726,3]
[347930655,1736218245553,-567.84781,0.00019726,2]
[347930656,1736218245562,-567.84781,0.00019726,2]
[347930657,1736218245572,-1291.98,0.00019726,3]
[347930658,1736218245582,-765.22,0.00019726,3]
[347930659,1736218245591,-21656.35,0.00019726,3]
[347930660,1736218245600,-567.84781,0.00019726,2]
[347930661,1736218245610,-567.84781,0.00019726,2]
[347930662,1736218245620,-500.0,0.00019726,3]
[347930663,1736218245629,-1632.19,0.00019726,3]
[347930664,1736218245638,-616.49,0.00019726,3]
[347930665,1736218245647,-1995.75,0.00019726,3]
[347930666,1736218245657,-500.0,0.00019726,3]
[347930667,1736218245667,-500.0,0.00019726,3]
[347930668,1736218245676,-500.0,0.00019726,3]
[347930669,1736218245686,-850.47,0.00019726,3]
[347930670,1736218245696,-835.62,0.00019726,3]
[347930671,1736218245705,-151.0,0.00019726,2]
[347930672,1736218245714,-1496.67572,0.00019726,2]
[347930673,1736218245723,-151.0,0.00019726,2]
[347930674,1736218245732,-500.0,0.00019726,3]
[347930675,1736218245742,-500.0,0.00019726,3]
[347930676,1736218245751,-1496.67572,0.00019726,2]
[347930677,1736218245761,-500.0,0.00019726,3]
[347930678,1736218245772,-978.63,0.00019726,3]
[347930679,1736218245781,-569.47164164,0.00019726,3]
[347930680,1736218245791,-500.0,0.00019726,3]
[347930681,1736218245800,-985.63,0.00019726,3]
[347930682,1736218245810,-842.46,0.00019726,3]
[347930683,1736218245820,-500.0,0.00019726,3]
[347930684,1736218245830,-500.0,0.00019726,3]
[347930685,1736218245839,-500.0,0.00019726,3]
[347930686,1736218245849,-6337.04,0.00019726,3]
[347930687,1736218245859,-190.965933,0.00019762,2]
[347930688,1736218245868,-190.965933,0.00019762,2]
[347930689,1736218245877,-257.911131,0.00019762,2]
[347930690,1736218245886,-257.911131,0.00019762,2]
[347930691,1736218245896,-346.640044,0.00019762,2]
[347930692,1736218245905,-346.640044,0.00019762,2]
[347930693,1736218245915,-1128.534128,0.00019762,2]
[347930694,1736218245924,-1128.534128,0.00019762,2]
[347930695,1736218245934,-545.058135,0.00019762,2]
[347930696,1736218245943,-545.058135,0.00019762,2]
[347930697,1736218245952,-1496.67572,0.00019762,2]
[347930698,1736218245962,-1496.67572,0.00019762,2]
[347930699,1736218245971,-177.60691,0.0001977,2]
[347930700,1736218245980,-177.60691,0.0001977,2]
[347930701,1736218245990,-241.995689,0.0001977,2]
[347930702,1736218245999,-241.995689,0.0001977,2]
[347930703,1736218246009,-208.037966,0.00019771,2]
[347930704,1736218246019,-208.037966,0.00019771,2]
[347930705,1736218246028,-500.0,0.00019773,2]
[347930706,1736218246037,-596.430962,0.00019817,2]
[347930707,1736218246047,-596.430962,0.00019817,2]
[347930708,1736218246056,-169.833979,0.00019817,2]
[347930709,1736218246066,-169.833979,0.00019817,2]
[347930710,1736218246076,-252.93342472,0.00019853,2]
[347930711,1736218246085,-192.0,0.00019871,2]
[347930712,1736218246094,-390.964998,0.000199,2]
[347930713,1736218246103,-390.964998,0.000199,2]
[347930714,1736218246113,-3563.08559211,0.000199,2]
[347930715,1736218246122,-160.0,0.00019911,3]
[347930716,1736218246131,-151.0,0.00019964,2]
[347930718,1736218246140,-151.0,0.00019972,2]
[347930719,1736218246150,-173.57344,0.00019973,2]
[347930721,1736218246159,-500.11941861,0.00019973,2]
[347930723,1736218246168,-501.51796519,0.00019973,2]
[347930724,1736218246178,-500.0,0.00019973,2]
[347930725,1736218246188,-500.0,0.00019973,2]
[347930726,1736218246198,-5706.12100191,0.0001999,3]
[347930727,1736218246207,-151.0,0.0001999,2]
[347930728,1736218246216,-151.0,0.0001999,2]
[347930729,1736218246226,-151.0,0.0001999,2]
[347930730,1736218246235,-151.0,0.0001999,2]
[347930731,1736218246244,-153.993812,0.0001999,2]
[347930732,1736218246253,-153.993812,0.0001999,2]
[347930733,1736218246262,-229.308313,0.0001999,2]
[347930734,1736218246271,-229.308313,0.0001999,2]
[347930735,1736218246281,-1178.847734,0.0001999,2]
[347930736,1736218246290,-1178.847734,0.0001999,2]
[347930737,1736218246299,-165.633418,0.0001999,2]
[347930738,1736218246309,-165.633418,0.0001999,2]
[347930739,1736218246318,-2093.44932,0.0001999,2]
[347930740,1736218246327,-2093.44932,0.0001999,2]
[347930741,1736218246339,-151.0,0.0001999,2]
[347930742,1736218246349,-546.328271,0.0001999,2]
[347930743,1736218246359,-546.328271,0.0001999,2]
[347930744,1736218246368,-153.054741,0.0001999,2]
[347930745,1736218246380,-153.054741,0.0001999,2]
[347930746,1736218246391,-412.958138,0.0001999,2]
[347930747,1736218246401,-412.958138,0.0001999,2]
[347930748,1736218246412,-151.0,0.0001999,2]
[347930749,1736218246422,-151.0,0.0001999,2]
[347930750,1736218246432,-567.84781,0.0001999,2]
[347930751,1736218246442,-567.84781,0.0001999,2]
[347930752,1736218246452,-151.0,0.0001999,2]
[347930753,1736218246461,-354.492904,0.00019995,2]
[347930754,1736218246471,-354.492904,0.00019995,2]
[347930755,1736218246481,-151.0,0.00019999,2]
[347930756,1736218246490,-605.378646,0.00019999,2]
[347930757,1736218246500,-605.378646,0.00019999,2]
[347930758,1736218246509,-151.0,0.00019999,2]
[347930759,1736218246519,-178.094633,0.00019999,2]
[347930760,1736218246528,-178.094633,0.00019999,2]
[347930761,1736218246538,-313.028497,0.00019999,2]
[347930762,1736218246547,-313.028497,0.00019999,2]
[347930763,1736218246557,-151.0,0.00019999,2]
[347930765,1736218246566,-280.30530198,0.0002,2]
[347930767,1736218246577,-500.0,0.0002,2]
[347930769,1736218246587,-650.63728499,0.0002,2]
[347930770,1736218246596,-150.11,0.0002,2]
[347930771,1736218246606,-299.12768151,0.0002,2]
[347930773,1736218246615,-500.0,0.0002,2]
[347930775,1736218246625,-500.0,0.0002,2]
[347930777,1736218246635,-150.11,0.0002,2]
[347930779,1736218246644,-901.70151616,0.0002,2]
[347930781,1736218246654,-150.63104048,0.0002,2]
[347930783,1736218246663,-87968.0,0.0002,2]
[347930785,1736218246673,-6890.0,0.0002,2]
[347930787,1736218246682,-1223.3585103,0.0002,3]
[347930789,1736218246692,-500.30263807,0.0002,2]
[347930791,1736218246701,-151.0,0.0002,2]
[347930793,1736218246711,-151.0,0.0002,2]
[347930795,1736218246720,-151.0,0.0002,2]
[347930797,1736218246730,-151.0,0.0002,2]
[347930799,1736218246739,-190.965933,0.0002,2]
[347930801,1736218246748,-190.965933,0.0002,2]
[347930803,1736218246758,-190.965933,0.0002,2]
[347930805,1736218246767,-190.965933,0.0002,2]
[347930807,1736218246777,-177.60691,0.0002,2]
[347930809,1736218246786,-177.60691,0.0002,2]
[347930811,1736218246796,-177.60691,0.0002,2]
[347930813,1736218246805,-177.60691,0.0002,2]
[347930815,1736218246814,-151.0,0.0002,2]
[347930817,1736218246823,-151.0,0.0002,2]
[347930819,1736218246833,-241.995689,0.0002,2]
[347930821,1736218246842,-241.995689,0.0002,2]
[347930824,1736218246852,-241.995689,0.0002,2]
[347930825,1736218246862,-241.995689,0.0002,2]
[347930827,1736218246871,-208.037966,0.0002,2]
[347930829,1736218246880,-208.037966,0.0002,2]
[347930832,1736218246890,-208.037966,0.0002,2]
[347930833,1736218246899,-208.037966,0.0002,2]
[347930836,1736218246909,-14078.0,0.0002,2]
[347930837,1736218246918,-151.0,0.0002,2]
[347930840,1736218246927,-151.0,0.0002,2]
[347930842,1736218246940,-151.0,0.0002,2]
[347930844,1736218246949,-151.827864,0.0002,2]
[347930846,1736218246959,-151.0,0.0002,2]
[347930848,1736218246968,-151.0,0.0002,2]
[347930850,1736218246977,-156.991306,0.0002,2]
[347930852,1736218246987,-151.723171,0.0002,2]
[347930854,1736218246997,-354.492904,0.0002,2]
[347930856,1736218247006,-354.492904,0.0002,2]
[347930858,1736218247016,-354.492904,0.0002,2]
[347930860,1736218247025,-354.492904,0.0002,2]
[347930862,1736218247034,-354.492904,0.0002,2]
[347930867,1736218247073,-354.492904,0.0002,2]
[347930869,1736218247082,-200.0,0.0002,2]
[347930871,1736218247092,-596.430962,0.0002,2]
[347930873,1736218247102,-596.430962,0.0002,2]
[347930875,1736218247111,-596.430962,0.0002,2]
[347930877,1736218247120,-151.0,0.0002,2]
[347930879,1736218247130,-151.0,0.0002,2]
[347930881,1736218247139,-151.0,0.0002,2]
[347930883,1736218247148,-596.430962,0.0002,2]
[347930885,1736218247157,-596.430962,0.0002,2]
[347930887,1736218247166,-596.43097,0.0002,2]
[347930889,1736218247175,-153.993812,0.0002,2]
[347930891,1736218247187,-153.993812,0.0002,2]
[347930893,1736218247196,-153.993812,0.0002,2]
[347930895,1736218247205,-153.993812,0.0002,2]
[347930897,1736218247214,-153.993812,0.0002,2]
[347930899,1736218247224,-153.993812,0.0002,2]
[347930901,1736218247233,-169.833979,0.0002,2]
[347930903,1736218247243,-169.833979,0.0002,2]
[347930905,1736218247252,-169.833979,0.0002,2]
[347930907,1736218247261,-169.833979,0.0002,2]
[347930909,1736218247270,-169.833979,0.0002,2]
[347930911,1736218247279,-169.833984,0.0002,2]
[347930913,1736218247289,-229.308313,0.0002,2]
[347930916,1736218247298,-229.308313,0.0002,2]
[347930917,1736218247307,-229.308313,0.0002,2]
[347930919,1736218247316,-229.308313,0.0002,2]
[347930922,1736218247326,-229.308313,0.0002,2]
[347930924,1736218247337,-229.308318,0.0002,2]
[347930926,1736218247348,-1178.847734,0.0002,2]
[347930927,1736218247358,-1178.847734,0.0002,2]
[347930929,1736218247368,-1178.847734,0.0002,2]
[347930932,1736218247379,-1178.84774,0.0002,2]
[347930933,1736218247389,-165.633418,0.0002,2]
[347930935,1736218247399,-165.633418,0.0002,2]
[347930937,1736218247409,-165.633418,0.0002,2]
[347930939,1736218247421,-165.633418,0.0002,2]
[347930942,1736218247432,-165.633418,0.0002,2]
[347930944,1736218247442,-165.633409,0.0002,2]
[347930946,1736218247452,-257.911131,0.0002,2]
[347930948,1736218247461,-257.911135,0.0002,2]
[347930950,1736218247470,-346.640044,0.0002,2]
[347930952,1736218247480,-346.640044,0.0002,2]
[347930954,1736218247489,-346.640044,0.0002,2]
[347930956,1736218247499,-346.640034,0.0002,2]
[347930957,1736218247508,-605.378646,0.0002,2]
[347930959,1736218247517,-605.378652,0.0002,2]
[347930962,1736218247527,-151.0,0.0002,2]
[347930963,1736218247536,-300.0,0.0002,8]
[347930965,1736218247546,-1128.534128,0.0002,2]
[347930968,1736218247555,-1128.534128,0.0002,2]
[347930970,1736218247564,-1128.534128,0.0002,2]
[347930972,1736218247573,-1128.534125,0.0002,2]
[347930974,1736218247583,-190.535701,0.0002,2]
[347930975,1736218247592,-178.094633,0.0002,2]
[347930978,1736218247602,-178.094625,0.0002,2]
[347930980,1736218247612,-500.0,0.0002,3]
[347930982,1736218247621,-500.0,0.0002,3]
[347930983,1736218247631,-313.028497,0.0002,2]
[347930984,1736218247639,-313.028504,0.0002,2]
[347930985,1736218247648,-545.058135,0.0002,2]
[347930986,1736218247657,-545.058135,0.0002,2]
[347930987,1736218247666,-545.058135,0.0002,2]
[347930988,1736218247675,-545.058127,0.0002,2]
[347930989,1736218247685,-2093.44932,0.0002,2]
[347930990,1736218247694,-2093.44932,0.0002,2]
[347930991,1736218247703,-2093.44932,0.0002,2]
[347930992,1736218247712,-2093.44932,0.0002,2]
[347930993,1736218247721,-2093.44932,0.0002,2]
[347930994,1736218247730,-2093.44932,0.0002,2]
[347930995,1736218247740,-151.0,0.0002,2]
[347930996,1736218247749,-251.412382,0.0002,2]
[347930997,1736218247758,-251.412382,0.0002,2]
[347930998,1736218247767,-251.412382,0.0002,2]
[347930999,1736218247776,-251.412382,0.0002,2]
[347931000,1736218247785,-251.412382,0.0002,2]
[347931001,1736218247794,-251.412382,0.0002,2]
[347931002,1736218247803,-1207.474637,0.0002,2]
[347931003,1736218247811,-1207.474637,0.0002,2]
[347931005,1736218247820,-1207.474637,0.0002,2]
[347931007,1736218247829,-1207.474637,0.0002,2]
[347931009,1736218247838,-1207.474637,0.0002,2]
[347931011,1736218247848,-1207.474637,0.0002,2]
[347931013,1736218247857,-151.0,0.0002,2]
[347931015,1736218247866,-500.0,0.0002,3]
[347931017,1736218247875,-151.0,0.0002,2]